fUSD/lending_fUSD_20240214
["ID","MTS","AMOUNT","RATE_DAILY","PERIOD"]
[314065035,1707952283807,-152.38,0.000397,3]
[314065036,1707952283816,-152.38,0.000397,3]
[314065037,1707952283826,-152.38,0.000397,3]
[314065038,1707952283835,-152.38,0.000397,3]
[314065039,1707952283846,-152.38,0.000397,3]
[314065040,1707952283855,-152.38,0.000397,3]
[314065041,1707952283866,-152.38,0.000397,3]
[314065042,1707952283878,-152.38,0.000397,3]
[314065043,1707952283887,-152.38,0.000397,3]
[314065044,1707952283897,-152.38,0.000397,3]
[314065045,1707952283906,-152.38,0.000397,3]
[314065046,1707952283915,-152.38,0.000397,3]
[314065047,1707952283925,-152.38,0.000397,3]
[314065048,1707952283934,-152.38,0.000397,3]
[314065049,1707952283943,-586.34,0.0003972,2]
[314065050,1707952283951,-500.0,0.00039726,7]
[314065051,1707952283960,-500.0,0.00039726,7]
[314065052,1707952283970,-615.56,0.00039726,7]
[314065053,1707952283980,-500.0,0.00039726,20]
[314065054,1707952283990,-559.88,0.00039726,7]
[314065055,1707952283999,-500.0,0.00039726,15]
[314065056,1707952284008,-711.99,0.00039726,7]
[314065057,1707952284018,-729.44,0.00039726,7]
[314065058,1707952284030,-559.36,0.00039726,7]
[314065059,1707952284042,-1586.82,0.00039726,7]
[314065060,1707952284053,-549.31,0.00039726,7]
[314065061,1707952284064,-518.11774389,0.00039726,7]
[314065062,1707952284073,-358.42590341,0.00039726,7]
[314065063,1707952284082,-712.41,0.00039726,7]
[314065064,1707952284092,-1388.92,0.00039726,7]
[314065065,1707952284102,-649.81,0.00039726,7]
[314065066,1707952284111,-530.34,0.00039726,7]
[314065067,1707952284121,-500.0,0.00039726,7]
[314065068,1707952284130,-726.49,0.00039726,7]
[314065069,1707952284140,-564.24,0.00039726,7]
[314065070,1707952284149,-598.26,0.00039726,7]
[314065071,1707952284160,-500.0,0.00039726,7]
[314065072,1707952284170,-316.42,0.00039726,7]
[314065073,1707952284180,-526.84,0.00039726,7]
[314065074,1707952284189,-789.32,0.00039726,7]
[314065075,1707952284199,-500.0,0.00039726,7]
[314065076,1707952284208,-500.0,0.00039726,7]
[314065077,1707952284217,-904.24,0.00039726,7]
[314065078,1707952284226,-680.52,0.00039726,7]
[314065079,1707952284235,-500.0,0.00039726,7]
[314065080,1707952284245,-719.08,0.00039726,7]
[314065081,1707952284254,-500.0,0.00039726,7]
[314065082,1707952284263,-1770.34,0.00039726,7]
[314065083,1707952284272,-786.82,0.00039726,7]
[314065084,1707952284281,-595.06,0.00039726,7]
[314065085,1707952284290,-157.75,0.00039726,2]
[314065086,1707952284299,-166.17,0.00039757,2]
[314065087,1707952284308,-153.54697605,0.00039794,5]
[314065088,1707952284317,-151.021522,0.00039798,22]
[314065089,1707952284327,-195.935586,0.00039818,2]
[314065090,1707952284337,-200.0,0.00039865,19]
[314065091,1707952284346,-303.09,0.000399,7]
[314065092,1707952284355,-209565.36263225,0.000399,5]
[314065093,1707952284364,-150.0,0.00039915,7]
[314065094,1707952284373,-150.0,0.00039915,7]
[314065095,1707952284382,-228.79120946,0.00039999,31]
[314065096,1707952284392,-286.57671458,0.00039999,31]
[314065097,1707952284402,-100000.0,0.0004,30]
[314065098,1707952284411,-939.34,0.0004,7]
[314065099,1707952284421,-769.56,0.0004,7]
[314065100,1707952284431,-49160.64900528,0.0004,15]
[314065101,1707952284441,-2110.0,0.0004,15]
[314065102,1707952284450,-9259.41,0.0004,30]
[314065103,1707952284459,-255.0,0.0004,12]
[314065104,1707952284468,-62908.48573385,0.0004,15]
[314065105,1707952284478,-255.0,0.0004,12]
[314065106,1707952284487,-255.0,0.0004,12]
[314065107,1707952284496,-500.0,0.0004,7]
[314065108,1707952284505,-500.0,0.0004,7]
[314065109,1707952284515,-615.56,0.0004,7]
[314065110,1707952284524,-255.0,0.0004,12]
[314065111,1707952284533,-3563.807001,0.0004,41]
[314065112,1707952284542,-500.0,0.0004,20]
[314065113,1707952284553,-255.0,0.0004,12]
[314065114,1707952284564,-559.88,0.0004,7]
[314065115,1707952284576,-255.0,0.0004,12]
[314065116,1707952284587,-711.99,0.0004,7]
[314065117,1707952284597,-559.36,0.0004,7]
[314065118,1707952284606,-729.44,0.0004,7]
[314065119,1707952284615,-1586.82,0.0004,7]
[314065120,1707952284624,-549.31,0.0004,7]
[314065121,1707952284633,-712.41,0.0004,7]
[314065122,1707952284643,-1388.92,0.0004,7]
[314065123,1707952284653,-649.81,0.0004,7]
[314065124,1707952284664,-530.34,0.0004,7]
[314065125,1707952284675,-500.0,0.0004,7]
[314065126,1707952284686,-726.49,0.0004,7]
[314065127,1707952284696,-564.24,0.0004,7]
[314065128,1707952284705,-598.26,0.0004,7]
[314065129,1707952284714,-500.0,0.0004,7]
[314065130,1707952284724,-526.84,0.0004,7]
[314065131,1707952284733,-789.32,0.0004,7]
[314065132,1707952284741,-632.9,0.0004,7]
[314065133,1707952284750,-255.0,0.0004,12]
[314065134,1707952284760,-500.0,0.0004,7]
[314065135,1707952284769,-904.24,0.0004,7]
[314065136,1707952284778,-680.52,0.0004,7]
[314065137,1707952284787,-500.0,0.0004,7]
[314065138,1707952284797,-719.08,0.0004,7]
[314065139,1707952284806,-500.0,0.0004,7]
[314065140,1707952284815,-1770.34,0.0004,7]
[314065141,1707952284824,-786.82,0.0004,7]
[314065142,1707952284833,-595.06,0.0004,7]
[314065143,1707952284843,-1634.0,0.00040066,20]
[314065144,1707952284853,-337.0,0.00040066,20]
[314065145,1707952284863,-151.021522,0.00040198,22]
[314065146,1707952284872,-500.0,0.0004024,21]
[314065147,1707952284882,-20293.50167081,0.00040254,2]
[314065148,1707952284892,-527.05115,0.0004027,3]
[314065149,1707952284901,-500.0,0.00040273,7]
[314065150,1707952284912,-585.5971548,0.00040273,7]
[314065151,1707952284922,-615.56,0.00040273,7]
[314065152,1707952284932,-500.0,0.00040273,20]
[314065153,1707952284942,-559.88,0.00040273,7]
[314065154,1707952284951,-711.99,0.00040273,7]
[314065155,1707952284961,-559.36,0.00040273,7]
[314065156,1707952284970,-729.44,0.00040273,7]
[314065157,1707952284982,-1586.82,0.00040273,7]
[314065158,1707952285085,-549.31,0.00040273,7]
[314065159,1707952285095,-712.41,0.00040273,7]
[314065160,1707952285105,-1388.92,0.00040273,7]
[314065161,1707952285115,-649.81,0.00040273,7]
[314065162,1707952285124,-530.34,0.00040273,7]
[314065163,1707952285134,-500.0,0.00040273,7]
[314065164,1707952285144,-726.49,0.00040273,7]
[314065165,1707952285153,-564.24,0.00040273,7]
[314065166,1707952285164,-598.26,0.00040273,7]
[314065167,1707952285174,-500.0,0.00040273,7]
[314065168,1707952285182,-526.84,0.00040273,7]
[314065169,1707952285191,-789.32,0.00040273,7]
[314065170,1707952285201,-500.0,0.00040273,7]
[314065171,1707952285212,-904.24,0.00040273,7]
[314065172,1707952285222,-680.52,0.00040273,7]
[314065173,1707952285231,-500.0,0.00040273,7]
[314065174,1707952285240,-719.08,0.00040273,7]
[314065175,1707952285249,-500.0,0.00040273,7]
[314065176,1707952285258,-1770.34,0.00040273,7]
[314065177,1707952285267,-786.82,0.00040273,7]
[314065178,1707952285278,-595.06,0.00040273,7]
[314065179,1707952285288,-1000.0,0.000403,42]
[314065180,1707952285297,-2276.75360299,0.00040323,5]
[314065181,1707952285307,-956.22,0.00040333,2]
[314065182,1707952285316,-220.0,0.00040344,7]
[314065183,1707952285325,-1634.0,0.00040458,20]
[314065184,1707952285335,-337.0,0.00040458,20]
[314065185,1707952285344,-200.0,0.00040475,20]
[314065186,1707952285353,-151.021522,0.00040498,22]
[314065187,1707952285362,-303.09,0.000405,7]
[314065188,1707952285371,-939.34,0.000405,7]
[314065189,1707952285380,-769.56,0.000405,7]
[314065190,1707952285389,-1292.17,0.000405,15]
[314065191,1707952285398,-500.0,0.00040547,7]
[314065192,1707952285409,-615.56,0.00040547,7]
[314065193,1707952285418,-500.0,0.00040547,20]
[314065194,1707952285428,-559.88,0.00040547,7]
[314065195,1707952285437,-711.99,0.00040547,7]
[314065196,1707952285447,-559.36,0.00040547,7]
[314065197,1707952285457,-729.44,0.00040547,7]
[314065198,1707952285466,-1586.82,0.00040547,7]
[314065199,1707952285475,-549.31,0.00040547,7]
[314065200,1707952285484,-712.41,0.00040547,7]
[314065201,1707952285493,-1388.92,0.00040547,7]
[314065202,1707952285503,-649.81,0.00040547,7]
[314065203,1707952285513,-530.34,0.00040547,7]
[314065204,1707952285524,-393.33,0.00040547,7]
[314065205,1707952285533,-726.49,0.00040547,7]
[314065206,1707952285544,-564.24,0.00040547,7]
[314065207,1707952285556,-598.26,0.00040547,7]
[314065208,1707952285569,-500.0,0.00040547,7]
[314065209,1707952285580,-526.84,0.00040547,7]
[314065210,1707952285590,-789.32,0.00040547,7]
[314065211,1707952285601,-500.0,0.00040547,7]
[314065212,1707952285611,-904.24,0.00040547,7]
[314065213,1707952285622,-680.52,0.00040547,7]
[314065214,1707952285631,-500.0,0.00040547,7]
[314065215,1707952285642,-719.08,0.00040547,7]
[314065216,1707952285653,-500.0,0.00040547,7]
[314065217,1707952285664,-1770.34,0.00040547,7]
[314065218,1707952285672,-786.82,0.00040547,7]
[314065219,1707952285682,-595.06,0.00040547,7]
[314065220,1707952285692,-500.0,0.000406,15]
[314065221,1707952285703,-405.09,0.00040655,2]
[314065222,1707952285712,-1828.92,0.00040655,2]
[314065223,1707952285722,-1000.0,0.000407,7]
[314065224,1707952285733,-766.3,0.00040733,2]
[314065225,1707952285743,-500.0,0.00040788,21]
[314065226,1707952285754,-222.021522,0.00040798,22]
[314065227,1707952285763,-212085.1595275,0.000408,20]
[314065228,1707952285773,-1250.0,0.000408,2]
[314065229,1707952285782,-200.0,0.000408,16]
[314065230,1707952285793,-150.0,0.000408,16]
[314065231,1707952285803,-11830.7360951,0.000408,2]
[314065232,1707952285814,-500.0,0.00040821,7]
[314065233,1707952285825,-615.56,0.00040821,7]
[314065234,1707952285835,-500.0,0.00040821,20]
[314065235,1707952285845,-559.88,0.00040821,7]
[314065236,1707952285854,-711.99,0.00040821,7]
[314065237,1707952285865,-559.36,0.00040821,7]
[314065238,1707952285874,-729.44,0.00040821,7]
[314065239,1707952285883,-1586.82,0.00040821,7]
[314065240,1707952285892,-549.31,0.00040821,7]
[314065241,1707952285901,-712.41,0.00040821,7]
[314065242,1707952285911,-1388.92,0.00040821,7]
[314065243,1707952285920,-649.81,0.00040821,7]
[314065244,1707952285929,-530.34,0.00040821,7]
[314065245,1707952285939,-726.49,0.00040821,7]
[314065246,1707952285948,-564.24,0.00040821,7]
[314065247,1707952285957,-598.26,0.00040821,7]
[314065248,1707952285966,-500.0,0.00040821,7]
[314065249,1707952285976,-526.84,0.00040821,7]
[314065250,1707952285985,-789.32,0.00040821,7]
[314065251,1707952285994,-500.0,0.00040821,7]
[314065252,1707952286003,-904.24,0.00040821,7]
[314065253,1707952286012,-680.52,0.00040821,7]
[314065254,1707952286022,-500.0,0.00040821,7]
[314065255,1707952286031,-719.08,0.00040821,7]
[314065256,1707952286041,-500.0,0.00040821,7]
[314065257,1707952286053,-1770.34,0.00040821,7]
[314065258,1707952286062,-786.82,0.00040821,7]
[314065259,1707952286071,-595.06,0.00040821,7]
[314065260,1707952286080,-11012.6362709,0.0004086,2]
[314065261,1707952286090,-1622.8516887,0.00040872,2]
[314065262,1707952286099,-37598.7560852,0.00040872,2]
[314065263,1707952286108,-100185.37942972,0.00040888,8]
[314065264,1707952286117,-1000.0,0.00040898,120]
[314065265,1707952286127,-1934.15094869,0.00040899,2]
[314065266,1707952286137,-175.83453059,0.00040899,10]
[314065267,1707952286147,-409.83090478,0.00040899,30]
[314065268,1707952286156,-963.31596476,0.00040899,30]
[314065269,1707952286167,-435.19046322,0.00040899,10]
[314065270,1707952286176,-491.51697285,0.00040899,30]
[314065271,1707952286187,-195.37170066,0.00040899,10]
[314065272,1707952286198,-4916.5327611,0.00040899,30]
[314065273,1707952286207,-275.64178063,0.00040899,30]
[314065274,1707952286217,-1244.88711791,0.000409,30]
[314065275,1707952286226,-170.94811091,0.000409,2]
[314065276,1707952286234,-8056.2896702,0.000409,3]
[314065277,1707952286244,-698.3474,0.000409,2]
[314065278,1707952286253,-698.3474,0.000409,2]
[314065279,1707952286263,-5470.12155345,0.000409,3]
[314065280,1707952286272,-1141.2914,0.000409,2]
[314065281,1707952286281,-500.0,0.000409,2]
[314065282,1707952286291,-254.0984062,0.00040916,2]
[314065283,1707952286301,-388.95,0.00040944,2]
[314065284,1707952286310,-1903.4091638,0.00040972,2]
[314065285,1707952286320,-2183.966639,0.00040972,2]
[314065286,1707952286329,-2464.5241141,0.00040972,2]
[314065287,1707952286339,-44098.8029765,0.00040972,2]
[314065288,1707952286348,-50598.8498677,0.00040972,2]
[314065289,1707952286360,-57098.8967589,0.00040972,2]
[314065290,1707952286370,-322.7092321,0.00040972,2]
[314065291,1707952286379,-391.3200581,0.00040972,2]
[314065292,1707952286389,-459.930884,0.00040972,2]
[314065293,1707952286399,-12492.5618219,0.00040972,2]
[314065294,1707952286409,-13972.4873729,0.00040972,2]
[314065295,1707952286418,-15452.4129238,0.00040972,2]
[314065296,1707952286427,-200.0,0.00040987,6]
[314065297,1707952286436,-200.0,0.00040987,4]
[314065298,1707952286445,-200.0,0.00040987,5]
[314065299,1707952286454,-100000.0,0.00041,31]
[314065300,1707952286464,-800.0,0.00041,2]
[314065301,1707952286474,-436.0,0.00041,5]
[314065302,1707952286484,-1000.0,0.00041,11]
[314065303,1707952286494,-3001.21478391,0.00041,14]
[314065304,1707952286504,-961.40919239,0.00041,7]
[314065305,1707952286514,-486153.01889711,0.00041,4]
[314065306,1707952286628,-1141.2914,0.000409,2]
[314065307,1707952286637,-1113.70392709,0.00041,4]
[314065308,1707952286651,-405.00471095,0.00041,4]
[314065309,1707952286668,-6934.99999997,0.00041,4]
[314065310,1707952286793,-500.0,0.00038082,7]
[314065311,1707952286805,-500.0,0.00038356,7]
[314065312,1707952286815,-500.0,0.0003863,7]
[314065313,1707952286825,-583.69,0.00038904,7]
[314065314,1707952286835,-481.3211175,0.00039111,2]
[314065315,1707952286849,-18.6788825,0.00039111,2]
[314065316,1707952286859,-500.0,0.00039111,2]
[314065317,1707952286870,-500.0,0.00039111,2]
[314065318,1707952286879,-48143.07876122,0.00041,4]
[314065319,1707952286896,-3097.70687534,0.00041,4]
[314065320,1707952286933,-500.0,0.00039111,2]
[314065321,1707952286943,-1052.86,0.00041,4]
[314065322,1707952286977,150.0,0.00022,2]
[314065323,1707952287207,-601.95,0.00035616,7]
[314065324,1707952287216,-645.58,0.00035616,7]
[314065325,1707952287226,-180.0,0.00037893,2]
[314065326,1707952287235,-500.0,0.00039111,2]
[314065327,1707952287244,-500.0,0.00039111,2]
[314065328,1707952287253,-500.0,0.00039111,2]
[314065329,1707952287262,-500.0,0.00039111,2]
[314065330,1707952287272,-500.0,0.00039111,2]
[314065331,1707952287281,-500.0,0.00039111,2]
[314065332,1707952287305,-500.0,0.00039111,2]
[314065333,1707952287321,-500.0,0.00039111,2]
[314065334,1707952287340,-23422.79537385,0.00041,4]
[314065335,1707952287376,-10878.74197526,0.00041,4]
[314065336,1707952287398,-1522.7823768,0.00041,4]
[314065338,1707952900699,165.55,0.0002212,2]
[314065339,1707953201138,-170.409854,0.00022362,2]
[314065340,1707953229095,-259.23788974,0.00022362,2]
[314065341,1707953229116,-22.590146,0.00022362,2]
[314065342,1707953229135,-175.09488492,0.00022596,2]
[314065343,1707953229156,-150.0,0.00022695,2]
[314065344,1707953229175,-300.0,0.00022696,2]
[314065345,1707953229194,-2432.682,0.00022696,2]
[314065346,1707953229216,-459.0684,0.00022696,2]
[314065347,1707953229237,-158.21415176,0.00022696,2]
[314065348,1707953229258,-283.83685538,0.00022786,2]
[314065349,1707953229277,-1277.96224405,0.00022796,2]
[314065350,1707953301261,999.999999,0.0002615,30]
[314065355,1707953432043,-567.67371076,0.00022596,2]
[314065356,1707953432053,-537.45080432,0.00022596,2]
[314065357,1707953432062,-22.25223432,0.00022686,2]
[314065358,1707953432100,-158.8523973,0.00022686,2]
[314065359,1707953432109,-150.0,0.00022695,2]
[314065360,1707953432118,-1056.0172,0.00022696,2]
[314065361,1707953432127,-3235.7304027,0.00022696,2]
[314065362,1707953432139,-550.0,0.00022696,2]
[314065363,1707953432210,-14295.28367109,0.00022696,2]
[314065364,1707953432221,-2309.39576069,0.00022696,2]
[314065365,1707953432233,-1627.20111127,0.00022696,2]
[314065366,1707953432244,-465.75611075,0.00022696,2]
[314065367,1707953432255,-1634.64451577,0.00022696,2]
[314065368,1707953432268,-3606.60006743,0.00022696,2]
[314065490,1707953438065,-437.70943335,0.00022696,2]
[314065491,1707953438122,-381.18278025,0.00022696,2]
[314065492,1707953438179,-3127.22011446,0.00022696,2]
[314065493,1707953438241,-772100.77213224,0.00022696,2]
[314065494,1707953438251,-582.4448,0.00022696,2]
[314065495,1707953438261,-65767.43555595,0.00022796,2]
[314065496,1707953438270,-5903.697,0.00022796,2]
[314065497,1707953438279,-889.3,0.00023985,2]
[314065498,1707953438289,-193.0,0.00024005,2]
[314065499,1707953438298,-2472.87,0.00024005,2]
[314065501,1707953438308,-4940.61,0.00024005,2]
[314065503,1707953438318,-210.0,0.00024964,2]
[314065505,1707953438327,-1250.0,0.00025,3]
[314065507,1707953438336,-150.99,0.00025596,2]
[314065508,1707953438345,-499.99,0.00025596,2]
[314065509,1707953438354,-193.0,0.00025649,2]
[314065510,1707953438363,-1095.76441049,0.00025698,2]
[314065511,1707953438372,-1095.7644105,0.00025698,2]
[314065512,1707953438381,-200.0,0.00025769,2]
[314065513,1707953438391,-1000.0,0.00025783,2]
[314065514,1707953438400,-2000.0,0.00025815,2]
[314065515,1707953438409,-4108.33,0.00025818,2]
[314065516,1707953438418,-250.0,0.00025819,2]
[314065517,1707953438427,-1795.54,0.00025848,2]
[314065518,1707953438437,-167.6,0.00025866,2]
[314065519,1707953438447,-250.0,0.00025873,2]
[314065520,1707953438458,-250.0,0.0002589,2]
[314065521,1707953438467,-200.0,0.00025909,2]
[314065522,1707953438477,-166.21,0.00025909,2]
[314065523,1707953438486,-607.71,0.00025915,2]
[314065524,1707953438495,-500.0,0.00025918,2]
[314065525,1707953438504,-376.12,0.0002592,2]
[314065526,1707953438513,-23900.0,0.00025931,2]
[314065527,1707953438522,-158.21415172,0.0002597,2]
[314065528,1707953438533,-531.47,0.00025991,2]
[314065529,1707953438542,-1047.62,0.00026025,2]
[314065530,1707953438550,-607.71,0.00026051,2]
[314065531,1707953438559,-150.0,0.00026079,2]
[314065532,1707953438569,-607.71,0.00026187,2]
[314065533,1707953438577,-889.3,0.00026249,2]
[314065534,1707953438586,-607.71,0.00026324,2]
[314065535,1707953438595,-191.17,0.00026331,2]
[314065536,1707953438605,-607.71,0.0002646,2]
[314065537,1707953438614,-607.71,0.00026597,2]
[314065538,1707953438623,-166.39,0.00026624,2]
[314065539,1707953438632,-150.48,0.00026649,2]
[314065540,1707953438641,-607.71,0.00026733,2]
[314065541,1707953438650,-150.48,0.00026847,2]
[314065542,1707953438659,-607.71,0.00026869,2]
[314065543,1707953438668,-1300.0,0.00027,3]
[314065544,1707953438677,-607.71,0.00027006,2]
[314065545,1707953438686,-150.48,0.00027046,2]
[314065546,1707953438696,-607.71,0.00027142,2]
[314065547,1707953438705,-300.0,0.00027154,2]
[314065548,1707953438714,-376.12,0.00027216,2]
[314065549,1707953438723,-150.48,0.00027244,2]
[314065550,1707953438732,-607.71,0.00027278,2]
[314065551,1707953438741,-193.0,0.00027293,2]
[314065552,1707953438751,-607.71,0.00027415,2]
[314065553,1707953438760,-150.48,0.00027442,2]
[314065554,1707953438768,-292.0,0.00027461,2]
[314065555,1707953438777,-4108.33,0.00027462,2]
[314065556,1707953438786,-26955.72,0.00027467,2]
[314065557,1707953438796,-607.71,0.00027551,2]
[314065558,1707953438805,-26955.72,0.00027626,2]
[314065559,1707953438813,-150.48,0.00027641,2]
[314065560,1707953438822,-607.71,0.00027688,2]
[314065561,1707953438831,-26955.72,0.00027785,2]
[314065562,1707953439004,-607.71,0.00027824,2]
[314065563,1707953439014,-150.48,0.00027839,2]
[314065564,1707953439023,-1934.395554,0.00027843,3]
[314065565,1707953439032,-26955.72,0.00027943,2]
[314065566,1707953439042,-607.71,0.0002796,2]
[314065567,1707953439051,-150.48,0.00028038,2]
[314065568,1707953439059,-607.71,0.00028097,2]
[314065569,1707953439069,-26955.72,0.00028102,2]
[314065570,1707953439077,-607.71,0.00028233,2]
[314065571,1707953439086,-241.89580262,0.0002826,2]
[314065572,1707953439095,-26955.72,0.00028261,2]
[314065573,1707953439104,-2886.75,0.00028334,2]
[314065574,1707953439113,-607.71,0.0002837,2]
[314065575,1707953439122,-26955.72,0.00028419,2]
[314065576,1707953439132,-607.71,0.00028506,2]
[314065577,1707953439141,-376.12,0.00028512,2]
[314065578,1707953439151,-889.3,0.00028513,2]
[314065579,1707953439160,-300.0,0.00028524,2]
[314065580,1707953439169,-26955.72,0.00028578,2]
[314065581,1707953439178,-26955.72,0.00028737,2]
[314065582,1707953439187,-26955.72,0.00028896,2]
[314065583,1707953439198,-193.0,0.00028937,2]
[314065584,1707953439207,-1350.0,0.00029,3]
[314065585,1707953439216,-1000.0,0.00029006,2]
[314065586,1707953439225,-4108.33,0.00029106,2]
[314065587,1707953439235,-158.21415172,0.00029243,2]
[314065588,1707953439244,-2886.75,0.00029336,2]
[314065589,1707953439254,-1934.39555395,0.00029708,4]
[314065590,1707953439263,-376.12,0.00029808,2]
[314065591,1707953439272,-221.0,0.0003,2]
[314065592,1707953439281,-157.42,0.00030137,2]
[314065593,1707953439290,-15626.9,0.00030137,2]
[314065594,1707953439300,-503.52,0.00030219,2]
[314065595,1707953439309,-800.0,0.00030247,2]
[314065596,1707953439318,-800.0,0.00030274,2]
[314065597,1707953439330,-2886.75,0.00030338,2]
[314065598,1707953439339,-193.0,0.00030581,2]
[314065599,1707953439348,-4108.33,0.0003075,2]
[314065600,1707953439357,-889.3,0.00030777,2]
[314065601,1707953439367,-376.12,0.00031104,2]
[314065602,1707953439376,-2886.75,0.0003134,2]
[314065603,1707953439385,-1934.39555395,0.00031574,5]
[314065604,1707953439394,-168.77,0.00031644,2]
[314065605,1707953439403,-180.0,0.00031644,2]
[314065606,1707953439412,-157.42,0.00031703,2]
[314065607,1707953439422,-108693.466072,0.000318,3]
[314065608,1707953439431,-10351.7586736,0.00031863,3]
[314065609,1707953439442,-23537.27913762,0.00031873,3]
[314065610,1707953439452,-229.12477774,0.00032,2]
[314065611,1707953439462,-229.12477774,0.00032,2]
[314065612,1707953439472,-229.12477774,0.00032,2]
[314065613,1707953439481,-229.12477774,0.00032,2]
[314065614,1707953439489,-229.12477774,0.00032,2]
[314065615,1707953439501,-229.12477774,0.00032,2]
[314065616,1707953439510,-229.12477774,0.00032,2]
[314065617,1707953439520,-229.12477774,0.00032,2]
[314065618,1707953439530,-229.12477774,0.00032,2]
[314065619,1707953439538,-229.12477774,0.00032,2]
[314065620,1707953439548,-229.12477774,0.00032,2]
[314065621,1707953439557,-229.12477774,0.00032,2]
[314065622,1707953439568,-229.12477774,0.00032,2]
[314065623,1707953439577,-229.12477774,0.00032,2]
[314065624,1707953439586,-229.12477774,0.00032,2]
[314065625,1707953439595,-229.12477774,0.00032,2]
[314065626,1707953439607,-229.12477774,0.00032,2]
[314065627,1707953439616,-229.12477774,0.00032,2]
[314065628,1707953439626,-229.12477774,0.00032,2]
[314065629,1707953439635,-229.12477774,0.00032,2]
[314065630,1707953439644,-229.12477774,0.00032,2]
[314065631,1707953439653,-229.12477774,0.00032,2]
[314065632,1707953439663,-229.12477774,0.00032,2]
[314065633,1707953439673,-229.12477774,0.00032,2]
[314065634,1707953439682,-229.12477774,0.00032,2]
[314065635,1707953439692,-229.12477774,0.00032,2]
[314065636,1707953439701,-229.12477774,0.00032,2]
[314065637,1707953439710,-229.12477774,0.00032,2]
[314065638,1707953439720,-229.12477774,0.00032,2]
[314065639,1707953439729,-229.12477774,0.00032,2]
[314065640,1707953439738,-193.0,0.00032225,2]
[314065641,1707953439747,-1000.0,0.00032229,2]
[314065642,1707953439756,-5175.87933678,0.00032332,3]
[314065643,1707953439765,-2886.75,0.00032342,2]
[314065644,1707953439775,-4108.33,0.00032394,2]
[314065645,1707953439784,-173.87668468,0.00032496,5]
[314065646,1707953439794,-20703.5173471,0.00032496,4]
[314065647,1707953439803,-151.41,0.00032501,5]
[314065648,1707953439812,-150.95,0.00032501,5]
[314065649,1707953439822,-1792.05,0.00032505,5]
[314065650,1707953439831,-2144.59302069,0.00032506,7]
[314065651,1707953439840,-28296.08730809,0.00032506,7]
[314065652,1707953439849,-10242.52757229,0.00032506,7]
[314065653,1707953439858,-23553.20312783,0.00032506,7]
[314065654,1707953439867,-158.21415172,0.00032517,2]
[314065655,1707953439876,-10351.7586736,0.00032684,4]
[314065656,1707953439889,-23537.27913758,0.00032694,4]
[314065657,1707953439898,-153.87,0.000327,2]
[314065658,1707953439907,-46582.914031,0.00032867,4]
[314065659,1707953439917,-150.3,0.00032877,2]
[314065660,1707953439926,-55588.84,0.00032877,2]
[314065661,1707953439936,-37296.12,0.00032877,2]
[314065662,1707953439946,-5175.87933678,0.0003289,4]
[314065663,1707953439955,-8000.0,0.000329,2]
[314065664,1707953439964,-221.0,0.00033,2]